Cogmind - Beta 14 @@@ ROGUE MODE // 2024.11.08 @ 14:31:15 Player: Berg Result: Self-destructed Performance ------------- Evolutions (2) 1000 Regions Visited (3) 600 Robots Destroyed (34) 170 Value Destroyed (635) 635 Prototype IDs (0) 0 Alien Tech Used (0) 0 Bonus (0) 0 TOTAL SCORE: 2405 Bonus ------- None Cogmind --------- Core Integrity 401/550 Matter 287/300 Energy 160/160 System Corruption 0% Temperature Cool (0) Movement Walking (190) Ox1 Location -8/Materials Parts ------- > --- POWER (1) -------- Light Nuclear Core > --- PROPULSION (3) --- Light Treads Aluminum Leg Aluminum Leg > --- UTILITY (4) ------ Improved Heat Sink Large Storage Unit Visual Processing Unit Light Armor Plating > --- WEAPON (3) ------- Light Assault Rifle Light Assault Rifle Light Assault Rifle > --- INVENTORY (15) --- Light Ion Engine Light Ion Engine Light Ion Engine Improved Heat Sink Improved Heat Sink Improved Heat Sink Medium Laser Beam Rifle Light Assault Rifle Grenade Launcher Peak State ------------ > --- POWER ------------ Light Nuclear Core > --- PROPULSION ------- Light Treads Aluminum Leg Aluminum Leg > --- UTILITY ---------- Improved Heat Sink Large Storage Unit Visual Processing Unit Light Armor Plating > --- WEAPON ----------- Light Assault Rifle Light Assault Rifle Light Assault Rifle > --- INVENTORY -------- Light Ion Engine Light Ion Engine Light Ion Engine Improved Ion Engine Improved Heat Sink Improved Heat Sink Improved Heat Sink Medium Laser Beam Rifle Light Assault Rifle Grenade Launcher [Rating: 17] Favorites ----------- Power Ion Engine Engine Ion Engine Power Core Light Nuclear Core Propulsion Light Treads Treads Light Treads Leg Aluminum Leg Utility Large Storage Unit Device Improved Heat Sink Storage Large Storage Unit Processor Visual Processing Unit Protection Light Armor Plating Weapon Light Assault Rifle Energy Gun Medium Laser Ballistic Gun Light Assault Rifle Build | -11 -10 -10 -8 ------- Run | Yrd Mat Sub Mat Slots Evolved 4 | . . . 4 Power . | . . . . Propulsion 1 | . . . 1 Utility 2 | . . . 2 Weapon 1 | . . . 1 Parts Attached 31 | 8 13 . 10 Power 5 | 1 2 . 2 Engine 4 | 1 2 . 1 Core 1 | . . . 1 Reactor . | . . . . Propulsion 10 | 2 4 . 4 Treads 8 | 2 4 . 2 Leg 2 | . . . 2 Wheel . | . . . . Hover . | . . . . Flight . | . . . . Utility 7 | 2 2 . 3 Device 3 | 1 . . 2 Storage 2 | 1 1 . . Processor 1 | . 1 . . Hackware . | . . . . Protection 1 | . . . 1 Artifact . | . . . . Weapon 9 | 3 5 . 1 Energy Gun 1 | 1 . . . Energy Cannon . | . . . . Ballistic Gun 8 | 2 5 . 1 Ballistic Cannon . | . . . . Launcher . | . . . . Special Weapon . | . . . . Impact Weapon . | . . . . Slashing Weapon . | . . . . Piercing Weapon . | . . . . Special Melee Weapon . | . . . . Unidentified Prototypes . | . . . . Parts Lost 6 | . 2 . 4 Power 1 | . . . 1 Propulsion 3 | . . . 3 Utility 1 | . 1 . . Weapon 1 | . 1 . . Highest Loss Streak 2 | . 1 . 2 To Critical Strikes . | . . . . Average Slot Usage (%) 92 | . 90 100 94 Engine 11 | . 13 14 8 Treads 26 | . 27 28 24 Device 4 | . 1 . 8 Storage 11 | . 14 14 9 Processor 6 | . 4 14 9 Protection 3 | . . . 8 Ballistic Gun 27 | . 27 28 26 Peak Build Rating 17 | 7 8 8 17 Average Rating 9 | 5 6 8 14 On Entrance 5 | . 7 8 8 Naked Turns . | . . . . Heaviest Build 34 | 14 28 27 34 Greatest Support 60 | 40 40 40 60 Greatest Overweight (x) 3 | 3 2 . 3 Average Overweight (x) . | . . . . Largest Inventory Capacity 15 | 8 15 15 15 Average Capacity 13 | 7 13 15 15 Most Carried 11 | 4 7 5 11 Average Carried 5 | 3 4 5 6 Final Capacity 15 | 8 15 15 15 Final Carried 10 | 4 5 5 10 Class Distribution -------------------- 60% | Mutant 37% | Scavenger-Tank Dominant Class ---------------- Mutant | -10/Materials Mutant | -10/Subcaves Scavenger-Tank | -8/Materials Resources | -11 -10 -10 -8 ----------- Run | Yrd Mat Sub Mat Matter Collected 752 | 280 253 . 219 Remotely . | . . . . Salvage Created 949 | 169 266 . 514 Parts 79 | 17 24 . 38 Haulers Intercepted . | . . . . Recyclers Shooed . | . . . . Parts Field Recycled . | . . . . Retrieved Matter . | . . . . Parts Self-Destructed . | . . . . Prevented . | . . . . Kills | -11 -10 -10 -8 ------- Run | Yrd Mat Sub Mat Combat Hostiles Destroyed 25 | . 11 . 14 Guns 25 | . 11 . 14 Classes Destroyed 7 | 3 3 . 1 Worker 2 | 2 . . . Tunneler 4 | 4 . . . Recycler 2 | 1 . . 1 Watcher 1 | . 1 . . Swarmer 15 | . 8 . 7 Grunt 8 | . 3 . 5 Sentry 2 | . . . 2 Best Kill Streak 6 | 3 3 . 6 Combat Bots Only 6 | . 3 . 6 Max Kills in Single Turn 2 | 1 2 . 1 Gunslinging 1 | . 1 . . Exploded . | . . . . Melee . | . . . . Uniques/NPCs Destroyed . | . . . . Combat | -11 -10 -10 -8 -------- Run | Yrd Mat Sub Mat Hostile Shots Fired 176 | . 81 . 95 Missed 45 | . 20 . 25 Damage Taken 1379 | . 530 . 849 Core 236 | . 87 . 149 Absorbed by Shields . | . . . . Core Remaining (%) 82 | 100 . 65 . Volleys Fired 126 | 23 52 . 51 Largest 3 | 1 2 . 3 Hottest 60 | 50 40 . 60 Shots Fired 273 | 23 104 . 146 Gun 273 | 23 104 . 146 Cannon . | . . . . Launcher . | . . . . Special . | . . . . Kinetic 250 | . 104 . 146 Thermal 23 | 23 . . . Explosive . | . . . . Electromagnetic . | . . . . Robot Hit Streak 10 | 4 8 . 10 Robot Miss Streak 5 | 3 5 . 4 Penetration Max . | . . . . Secondary Targets 4 | . 1 . 3 Max Gunslinging Chain 1 | . 1 . 1 Shots Hit Robots 173 | 13 64 . 96 Core Hits 73 | 8 25 . 40 Critical Kills . | . . . . Critical Parts Destroyed 1 | . 1 . . Critical Strikes 2 | 1 1 . . Burn 1 | 1 . . . Destroy 1 | . 1 . . Melee Attacks . | . . . . Impact . | . . . . Slashing . | . . . . Piercing . | . . . . Sneak Attacks . | . . . . Combat Hostiles . | . . . . Follow-up Attacks . | . . . . Damage Inflicted 1536 | 188 549 . 799 Guns 1536 | 188 549 . 799 Cannons . | . . . . Explosions . | . . . . Melee . | . . . . Ramming . | . . . . Kinetic 1348 | . 549 . 799 Thermal 188 | 188 . . . Explosive . | . . . . Electromagnetic . | . . . . Impact . | . . . . Slashing . | . . . . Piercing . | . . . . Highest Corruption 1 | . 1 1 . Average Corruption 1 | . 1 1 . Corruption Purged . | . . . . Corruption Blocked . | . . . . Overload Shots . | . . . . Overflow Damage . | . . . . Projectiles . | . . . . Explosions . | . . . . Melee . | . . . . Knockbacks . | . . . . Impact . | . . . . Kinetic . | . . . . Secondary . | . . . . Self-Inflicted Damage . | . . . . Shots . | . . . . Rammed . | . . . . Targets Rammed . | . . . . Kicked . | . . . . Crushed . | . . . . Highest Temperature 60 | 60 12 . 42 Average Temperature 18 | 23 7 . 14 Received Heat Transfer 423 | . 72 . 351 Siege Activations . | . . . . Robots Corrupted . | . . . . Combat Hostiles . | . . . . Parts Fried . | . . . . Impact Corruptions . | . . . . Robots Melted . | . . . . Combat Hostiles . | . . . . Parts Melted . | . . . . Heat Transferred 629 | 629 . . . Parts Sabotaged . | . . . . Parts Stolen . | . . . . Parts Stripped . | . . . . Power Chain Reactions . | . . . . Alert | -11 -10 -10 -8 ------- Run | Yrd Mat Sub Mat Peak Influence 249 | 35 249 . 198 Initial 22 | . 22 . 13 Average 88 | 14 101 . 87 Maximum Alert Level 1 | . 1 . . Low Security (%) 97 | 100 95 . 100 Level 1 2 | . 4 . . Level 2 . | . . . . Level 3 . | . . . . Level 4 . | . . . . Level 5 . | . . . . High Security . | . . . . Max Security . | . . . . Squads Dispatched 4 | . 2 . 2 Investigation . | . . . . Extermination . | . . . . Reinforcement 4 | . 2 . 2 Assault . | . . . . Garrison . | . . . . Intercept . | . . . . Searches Triggered . | . . . . Construction Impeded . | . . . . Haulers Reinforced . | . . . . Active Scanning Responses . | . . . . Cargo Convoy Interrupts . | . . . . Stealth | -11 -10 -10 -8 --------- Run | Yrd Mat Sub Mat Distress Signals 5 | . 3 . 2 Communications Jammed . | . . . . Distress Signals . | . . . . Times Spotted 47 | . 27 2 18 Peak Tracking Total 6 | . 5 2 6 Tactical Retreats 4 | . 3 . 1 Traps | -11 -10 -10 -8 ------- Run | Yrd Mat Sub Mat Traps Triggered 3 | . 3 . . Indirectly . | . . . . Trap Hack Attempts . | . . . . Triggered . | . . . . Disarmed . | . . . . Reprogrammed . | . . . . Reused . | . . . . Traps Extracted . | . . . . Installed . | . . . . Triggered . | . . . . Machines | -11 -10 -10 -8 ---------- Run | Yrd Mat Sub Mat Machines Disabled . | . . . . Max in Single Turn . | . . . . Machines Repaired . | . . . . Machines Dismantled . | . . . . Machines Sabotaged . | . . . . Overloaded Fab Kills . | . . . . Hacking | -11 -10 -10 -8 --------- Run | Yrd Mat Sub Mat Machines Accessed 5 | . 5 . . Terminals 5 | . 5 . . Fabricators . | . . . . Repair Stations . | . . . . Recycling Units . | . . . . Scanalyzers . | . . . . Garrison Access . | . . . . Total Hacks 12 | . 12 . . Successful 5 | . 5 . . Failed 7 | . 7 . . Catastrophic 4 | . 4 . . Database Lockouts . | . . . . Manual 11 | . 11 . . Terminals 12 | . 12 . . Fabricators . | . . . . Repair Stations . | . . . . Recycling Units . | . . . . Scanalyzers . | . . . . Garrison Access . | . . . . Terminal Hacks 5 | . 5 . . Robot Analysis 2 | . 2 . . Emergency Access Points 1 | . 1 . . Terminal Index 1 | . 1 . . Zone Layout 1 | . 1 . . Fabricator Hacks . | . . . . Repair Station Hacks . | . . . . Recycling Unit Hacks . | . . . . Scanalyzer . | . . . . Garrison Access Hacks . | . . . . Unauthorized Hacks . | . . . . Terminals . | . . . . Fabricators . | . . . . Repair Stations . | . . . . Recycling Units . | . . . . Scanalyzers . | . . . . Garrison Access . | . . . . Data Cores Recovered . | . . . . Used . | . . . . Hacking Detections 4 | . 4 . . Full Trace Events . | . . . . Feedback Events . | . . . . Feedback Blocked . | . . . . Robot Schematics Acquired . | . . . . Robots Built . | . . . . Authchips . | . . . . Time . | . . . . Total Robot Build Rating . | . . . . Part Schematics Acquired . | . . . . Parts Built . | . . . . Authchips . | . . . . Time . | . . . . Total Part Build Rating . | . . . . Parts Repaired . | . . . . Time . | . . . . Parts Recycled . | . . . . Recycled Matter . | . . . . Retrieved Matter . | . . . . Retrieved Components . | . . . . Parts Scanalyzed . | . . . . Part Schematics Acquired . | . . . . Parts Damaged . | . . . . Bothacking | -11 -10 -10 -8 ------------ Run | Yrd Mat Sub Mat Used RIF Installer . | . . . . Robots Hacked . | . . . . Non-combat . | . . . . Combat . | . . . . Robot Hacks Applied . | . . . . Relay Couplers Released . | . . . . Fabnet Peak Effective % . | . . . . Robots Rewired . | . . . . Allies Hacked . | . . . . Hacks Repelled . | . . . . Allies | -11 -10 -10 -8 -------- Run | Yrd Mat Sub Mat Total Allies . | . . . . Largest Group . | . . . . Highest-Rated Group . | . . . . Highest-Rated Ally . | . . . . Total Orders . | . . . . Ally Attacks . | . . . . Total Damage . | . . . . Kills . | . . . . Allies Corrupted . | . . . . Allies Melted . | . . . . Intel | -11 -10 -10 -8 ------- Run | Yrd Mat Sub Mat Robot Analysis Total 2 | . 2 . . Derelict Logs Recovered 1 | . . 1 . Drone Launches . | . . . . Drone Recoveries . | . . . . Exploration | -11 -10 -10 -8 ------------- Run | Yrd Mat Sub Mat Turns Passed 2465 | 206 1219 10 1030 Spaces Moved 834 | 91 518 7 218 Core 12 | 10 2 . . Treads 795 | 81 516 7 191 Legs 27 | . . . 27 Wheels . | . . . . Hover . | . . . . Flight . | . . . . Fastest Speed 50 | 50 150 160 160 Average Speed 162 | 157 159 160 170 Slowest Speed 330 | 200 160 160 330 Overloaded Moves . | . . . . Propulsion Burnouts . | . . . . Robots Hopped . | . . . . Cave-ins Triggered . | . . . . Exploration Rate (%) 28 | 8 87 1 19 Regions Visited 3 Branch Regions 1 Pre-discovered Areas 1 | . . 1 . Known Exits Taken . | . . . . Unknown Exits Taken 3 | 1 1 1 . Scrap Searched . | . . . . Spaces Dug . | . . . . Terrain Destroyed . | . . . . Melee . | . . . . Projectile . | . . . . AOE . | . . . . Terrain Rammed . | . . . . Walls Destroyed . | . . . . Machines Disabled . | . . . . Actions | -11 -10 -10 -8 --------- Run | Yrd Mat Sub Mat Total 1743 | 127 820 6 790 Wait 730 | 2 226 . 502 Move 831 | 90 517 6 218 Hop . | . . . . Pick Up 15 | 4 4 . 7 Fast Attach 20 | 7 7 . 6 Attach 3 | . 1 . 2 Detach 1 | . 1 . . Swap 8 | 1 5 . 2 Drop 9 | . 7 . 2 Fire 126 | 23 52 . 51 Melee . | . . . . Ram . | . . . . Kick . | . . . . Crush . | . . . . Escape Stasis . | . . . . Rewire . | . . . . Trap . | . . . . Miscellaneous . | . . . . Route ------- -11/Scrapyard -10/Materials (discovered 5 exits: [*Mat x3] / [*Min] / [*Sub]) -10/Subcaves -8/Materials History --------- Turn | Location | Event 33 | -11/Scrapyard | Discovered new exit (range 16) 207 | -11/Scrapyard | Entered Materials 314 | -10/Materials | Build established: Mutant 469 | -10/Materials | Discovered new exit (range 14) 910 | -10/Materials | Discovered new exit (range 8) 1089 | -10/Materials | Discovered new exit (range 16) 1180 | -10/Materials | Discovered new exit (range 5) 1416 | -10/Materials | Discovered new exit (range 7) 1426 | -10/Materials | Entered Subcaves 1426 | -10/Subcaves | Discovered new exit (range 7) 1434 | -10/Subcaves | Ambushed by Subdwellers from Twisted Machinery 1436 | -10/Subcaves | Entered Materials 1436 | -8/Materials | Evolved 4 slots: Propulsion x1, Utility x2, Weapon x1 1849 | -8/Materials | Build established: Scavenger-Tank 2466 | -8/Materials | Self-destructed Last Messages --------------- 02322_ S-10 Pest destroyed. 02322_ Switching to secondary target: G-47 Trooper. 02327_ G-47 Trooper destroyed. 02327_ K-01 Serf collects debris. 02329_ S-10 Pest destroyed. 02330_ K-01 Serf collects debris. 02333_ W-25 Informer sends out distress signal. 02334_ K-01 Serf collects debris. 02335_ Acquired 26 matter. 02342_ K-01 Serf collects debris. 02354_ G-47 Trooper destroyed. 02354_ K-01 Serf collects debris. 02368_ G-47 Trooper destroyed. 02376_ Acquired 30 matter. 02388_ Acquired Imp. Heat Sink. 02403_ Acquired Aluminum Leg. 02415_ Acquired 20 matter. 02419_ Acquired Imp. Heat Sink. 02426_ Dropped Imp. Ion Engine. 02442_ K-01 Serf collects debris. Map ----- +----------------------------------------------------+ | ?????????????????????????????????????????????????? | | ?????????????????????????????????????????????????? | | ?????????????????????????????????????????????????? | | ?????????????????????????????????????????????????? | | ?????????????????????????????????????????????????? | | ?????????????????????????????????????????????????? | | ?????????????????????????????????????????????????? | | ?????????????????????????????????????????????????? | | ?????????????????????????????????????????????????? | | ?????????????????????????????????????????????????? | | ?????????????????????????????????????????????????? | | ?????????????????????????????????????????????????? | | ?????????????????????????????????????????????????? | | ?????????????????????????????????????????????????? | | ?????????????????????????????????????????????????? | | ?????????????????????????????????????????????????? | | ??????????????????????????????????????? ?????????? | | ?????????????????????????????######### ?????????? | | ????????????????????????????? ]]] ????????? | | ???????????????????????????? ]]] ????????? | | ???????????????????????????? ]] ????????? | | ?????????????????????????? #???????? | | ?????????????????????????? ?????????? | | ?????????????????#######? """??????????? | | ????????????###### [## """??????????? | | ????????????# # @ """??????????? | | ????????????## # T !! #???????? | | ?????????????# # !! #???????? | | /####?????????#== # #################????????? | | #?????????#== ## #########?????????????????? | | #?????????#= ## #] #?????????????????? | | #??######## ## # """" #?????????????????? | | #??# ###+### + """" #?????????????????? | | #??# # """" #?????????????????? | | #??# #/ #?????????????????? | | #??# #########?????????????????? | | #??# ####### #?????????????????????????? | | % ##### ########## #?????????????????????????? | | #+### % # # ####??????????????????????? | | = [ # #* !##?????????????????????? | | %= # #* !#?????????????????????? | | =% ] # =/% !#?????????????????????? | | #####=%== # # !#?????????????????????? | | ????## ! ## =%*# !#?????????????????????? | | ?????#"%"## =%# !##?????????????????????? | | ?????# " ## =% %[/ ####??????????????????????? | | ?????# ## = ### #?????????????????????????? | | ?????# ###+#######?# #?????????????????????????? | | ?????# #?# #??###### #?????????????????????????? | | ?????# #?# ### # #?????????????????????????? | +----------------------------------------------------+ Best States ------------- Heat Dissipation 45 Energy Generation 14 Energy Capacity 265 Matter Stores 300 Matter Capacity 300 Sight Range 18 Terrain Scan Density 10 Armor Coverage 150 Evasion (%) 40 Recoil Reduction 3 Item Schematics ----------------- None Robot Schematics ------------------ None Fabricated ------------ Nothing Alien Tech Used ----------------- None Achievements -------------- None Challenges ------------ None Game ------ Seed DerelictLinearFemtoactuators Manual? 0 Play Time 00:20:06 Cumulative 71.6 hours Start 2024.10.24 @ 22:19:03 End 2024.11.08 @ 14:31:15 Sessions 2 Manual Loads 0 Difficulty Rogue Special Mode None Game No. 71 Rogue 71 Adventurer 0 Explorer 0 Win Type - Total 0 Types 0/0/0/0/0/0/0/0/0 Lore% 15 Gallery% 42 Achievement% 36 Wizard Run 0 Options --------- Layout 0 ASCII 0 Keyboard 1 Movement Numpad Keybinds 0 Fullscreen 2 Font 24/Smallcaps Map View 76x50 Zoom Use 0% Tactical HUD 1 Map Filters NONE Filters NONE Steam 1 RUN: b628ef09-367c-4a45-abff-4dca8a94c01d